fUSD/lending_fUSD_20250308
["ID","MTS","AMOUNT","RATE_DAILY","PERIOD"]
[355697978,1741476650420,-517.92134827,9.997e-05,2]
[355697979,1741476650430,-500.0,9.997e-05,2]
[355697980,1741476650439,-500.0,9.997e-05,2]
[355697981,1741476650448,-500.0,9.997e-05,2]
[355697982,1741476650457,-187.19247754,9.997e-05,2]
[355697983,1741476650467,-500.0,9.997e-05,2]
[355697984,1741476650476,-500.0,9.997e-05,2]
[355697985,1741476650485,-504.66536415,9.997e-05,2]
[355697986,1741476650494,-500.0,9.997e-05,2]
[355697987,1741476650503,-500.0,9.997e-05,2]
[355697988,1741476650513,-500.0,9.997e-05,2]
[355697989,1741476650522,-500.0,9.997e-05,2]
[355697990,1741476650532,-499.99958894,9.997e-05,2]
[355697991,1741476650541,-500.0,9.997e-05,2]
[355697992,1741476650550,-500.0,9.997e-05,2]
[355697993,1741476650560,-500.0,9.997e-05,2]
[355697994,1741476650569,-500.0,9.997e-05,2]
[355697995,1741476650579,-500.0,9.997e-05,2]
[355697996,1741476650589,-500.0,9.997e-05,2]
[355697997,1741476650598,-500.0,9.997e-05,2]
[355697998,1741476650607,-504.36565173,9.997e-05,2]
[355697999,1741476650617,-500.0,9.997e-05,2]
[355698000,1741476650626,-500.0,9.997e-05,2]
[355698001,1741476650635,-500.0,9.997e-05,2]
[355698002,1741476650645,-500.0,9.997e-05,2]
[355698003,1741476650654,-500.0,9.997e-05,2]
[355698004,1741476650663,-500.0,9.997e-05,2]
[355698005,1741476650673,-500.0,9.997e-05,2]
[355698006,1741476650682,-500.0,9.997e-05,2]
[355698007,1741476650692,-511.23917481,9.997e-05,2]
[355698008,1741476650704,-257.93126018,9.997e-05,2]
[355698009,1741476650713,-500.0,9.997e-05,2]
[355698010,1741476650722,-500.0,9.997e-05,2]
[355698011,1741476650731,-500.0,9.997e-05,2]
[355698012,1741476650742,-500.0,9.997e-05,2]
[355698013,1741476650751,-508.15952098,9.997e-05,2]
[355698014,1741476650760,-500.0,9.997e-05,2]
[355698015,1741476650770,-500.0,9.997e-05,2]
[355698016,1741476650781,-500.0,9.997e-05,2]
[355698017,1741476650791,-405.54849718,9.997e-05,2]
[355698018,1741476650800,-500.0,9.997e-05,2]
[355698019,1741476650809,-500.0,9.997e-05,2]
[355698020,1741476650818,-500.0,9.997e-05,2]
[355698021,1741476650827,-500.0,9.997e-05,2]
[355698022,1741476650837,-200.0,9.997e-05,2]
[355698023,1741476650846,-506.46250044,9.997e-05,2]
[355698024,1741476650856,-500.0,9.997e-05,2]
[355698025,1741476650865,-495.35832165,9.997e-05,2]
[355698026,1741476650885,-4.64167835,9.997e-05,2]
[355698027,1741476650894,-416.93828745,9.997e-05,2]
[355698028,1741476650905,-83.06171255,9.997e-05,2]
[355698029,1741476650914,-500.0,9.997e-05,2]
[355698030,1741476650924,-500.0,9.997e-05,2]
[355698031,1741476650934,-500.0,9.997e-05,2]
[355698032,1741476650943,-507.02912201,9.997e-05,2]
[355698033,1741476650952,-500.0,9.997e-05,2]
[355698034,1741476650962,-500.0,9.997e-05,2]
[355698035,1741476650972,-621.1825297,9.997e-05,2]
[355698036,1741476650981,-500.0,9.997e-05,2]
[355698037,1741476650990,-500.0,9.997e-05,2]
[355698038,1741476651000,-500.0,9.997e-05,2]
[355698039,1741476651009,-545.65336078,9.997e-05,2]
[355698040,1741476651018,-500.0,9.997e-05,2]
[355698041,1741476651027,-500.0,9.997e-05,2]
[355698042,1741476651037,-500.0,9.997e-05,2]
[355698043,1741476651046,-500.0,9.997e-05,2]
[355698044,1741476651055,-500.0,9.997e-05,2]
[355698045,1741476651064,-516.51794618,9.997e-05,2]
[355698046,1741476651074,-500.0,9.997e-05,2]
[355698047,1741476651083,-500.0,9.997e-05,2]
[355698048,1741476651092,-500.0,9.997e-05,2]
[355698049,1741476651102,-500.0,9.997e-05,2]
[355698050,1741476651111,-500.0,9.997e-05,2]
[355698051,1741476651120,-500.0,9.997e-05,2]
[355698052,1741476651130,-559.46763554,9.997e-05,2]
[355698053,1741476651139,-500.0,9.997e-05,2]
[355698054,1741476651147,-500.0,9.997e-05,2]
[355698055,1741476651157,-500.0,9.997e-05,2]
[355698056,1741476651166,-500.0,9.997e-05,2]
[355698057,1741476651176,-500.0,9.997e-05,2]
[355698058,1741476651186,-500.0,9.997e-05,2]
[355698059,1741476651195,-507.02998905,9.997e-05,2]
[355698060,1741476651205,-500.0,9.997e-05,2]
[355698061,1741476651215,-500.0,9.997e-05,2]
[355698062,1741476651224,-500.0,9.997e-05,2]
[355698063,1741476651233,-500.0,9.997e-05,2]
[355698064,1741476651243,-513.43096182,9.997e-05,2]
[355698065,1741476651252,-500.0,9.997e-05,2]
[355698066,1741476651261,-500.0,9.997e-05,2]
[355698067,1741476651271,-500.0,9.997e-05,2]
[355698068,1741476651280,-500.0,9.997e-05,2]
[355698069,1741476651289,-507.71279119,9.997e-05,2]
[355698070,1741476651298,-500.0,9.997e-05,2]
[355698071,1741476651307,-500.0,9.997e-05,2]
[355698072,1741476651316,-610.99435329,9.997e-05,2]
[355698073,1741476651325,-500.0,9.997e-05,2]
[355698074,1741476651334,-513.07133379,9.997e-05,2]
[355698075,1741476651344,-500.0,9.997e-05,2]
[355698076,1741476651353,-500.0,9.997e-05,2]
[355698077,1741476651362,-500.0,9.997e-05,2]
[355698078,1741476651371,-500.0,9.997e-05,2]
[355698079,1741476651380,-500.0,9.997e-05,2]
[355698080,1741476651389,-500.0,9.997e-05,2]
[355698081,1741476651398,-500.0,9.997e-05,2]
[355698082,1741476651407,-500.0,9.997e-05,2]
[355698083,1741476651416,-172.30938774,9.997e-05,2]
[355698084,1741476651435,-327.69061226,9.997e-05,2]
[355698085,1741476651445,-507.41585096,9.997e-05,2]
[355698086,1741476651454,-500.0,9.997e-05,2]
[355698087,1741476651463,-500.0,9.997e-05,2]
[355698088,1741476651472,-500.0,9.997e-05,2]
[355698089,1741476651481,-500.0,9.997e-05,2]
[355698090,1741476651490,-500.0,9.997e-05,2]
[355698091,1741476651499,-392.52469772,9.997e-05,2]
[355698092,1741476651508,-272.05478616,9.997e-05,2]
[355698093,1741476651520,-227.94521384,9.997e-05,2]
[355698094,1741476651529,-329.66478466,9.997e-05,2]
[355698126,1741477786278,236.0,8.084e-05,2]
[355698129,1741477831531,-278.70006018,8.219e-05,2]
[355698130,1741477831626,-1213.46993982,8.219e-05,2]
[355698131,1741477831636,-309.43585,8.706e-05,2]
[355698132,1741477831646,-405.89421018,8.75e-05,2]
[355698133,1741477831695,-903.30512696,8.75e-05,2]
[355698134,1741477831707,-190.80066286,8.75e-05,2]
[355698135,1741477831717,-151.0,8.824e-05,2]
[355698136,1741477831726,-454.89421018,8.867e-05,2]
[355698137,1741477831786,-675.80578982,8.867e-05,2]
[355698138,1741477831796,-1000.0,8.956e-05,2]
[355698139,1741477831805,-300.0,8.976e-05,2]
[355698140,1741477831815,-23900.0,8.977e-05,2]
[355698141,1741477831824,-433.75,8.983e-05,2]
[355698142,1741477831834,-593.03,8.983e-05,2]
[355698143,1741477831843,-250.0,8.983e-05,2]
[355698144,1741477831853,-150.0,9.014e-05,2]
[355698145,1741477831863,-179.57,9.034e-05,2]
[355698146,1741477831873,-150.0,9.041e-05,2]
[355698147,1741477831883,-550.0,9.041e-05,2]
[355698148,1741477831892,-150.99,9.048e-05,2]
[355698149,1741477831902,-2432.15,9.048e-05,2]
[355698150,1741477831912,-164.34,9.079e-05,2]
[355698151,1741477831921,-4616.11247134,9.79e-05,2]
[355698152,1741477831931,-201.5819,9.799e-05,2]
[355698153,1741477831941,-10610.41173393,9.8e-05,2]
[355698154,1741477831960,-22165.78349516,9.8e-05,2]
[355698182,1741477837393,-5553.55947091,9.8e-05,2]
[355698183,1741477837402,-1000.0,9.8e-05,2]
[355698185,1741477837412,-1000.0,9.8e-05,2]
[355698186,1741477837421,-2500.0,9.8e-05,2]
[355698187,1741477837431,-160.20265282,9.873e-05,2]
[355698189,1741477837441,-151.28774341,9.873e-05,2]
[355698191,1741477837450,-452.11301621,9.873e-05,2]
[355698193,1741477837460,-151.28840854,9.873e-05,2]
[355698194,1741477837469,-208.60702051,9.873e-05,2]
[355698195,1741477837479,-555.84944078,9.873e-05,2]
[355698196,1741477837488,-420.0,9.873e-05,2]
[355698197,1741477837497,-260.9736,9.894e-05,2]
[355698198,1741477837507,-468.7294,9.895e-05,2]
[355698199,1741477837518,-500.0,9.898e-05,2]
[355698200,1741477837527,-500.0,9.898e-05,2]
[355698201,1741477837536,-500.0,9.898e-05,2]
[355698202,1741477837545,-5248.384841,9.899e-05,2]
[355698203,1741477837554,-3791.84705888,9.899e-05,2]
[355698204,1741477837641,-598.7670878,9.899e-05,2]
[355698242,1741477839570,-4029.88251632,9.899e-05,2]
[355698243,1741477839580,-302.701886,9.899e-05,2]
[355698244,1741477839591,-304.775006,9.899e-05,2]
[355698245,1741477839600,-5999.293875,9.899e-05,2]
[355698246,1741477839610,-500.0,9.899e-05,2]
[355698247,1741477839619,-500.0,9.899e-05,2]
[355698248,1741477839628,-500.0,9.899e-05,2]
[355698249,1741477839638,-500.0,9.899e-05,2]
[355698250,1741477839649,-500.0,9.899e-05,2]
[355698251,1741477839659,-489.74996819,9.899e-05,2]
[355698252,1741477839668,-500.0,9.899e-05,2]
[355698253,1741477839678,-500.0,9.899e-05,2]
[355698254,1741477839688,-500.0,9.899e-05,2]
[355698255,1741477839698,-500.0,9.899e-05,2]
[355698256,1741477839708,-500.0,9.899e-05,2]
[355698257,1741477839718,-500.0,9.899e-05,2]
[355698258,1741477839727,-500.0,9.899e-05,2]
[355698259,1741477839738,-500.0,9.899e-05,2]
[355698260,1741477839747,-500.0,9.899e-05,2]
[355698261,1741477839757,-500.0,9.899e-05,2]
[355698262,1741477839766,-500.0,9.899e-05,2]
[355698263,1741477839775,-500.0,9.899e-05,2]
[355698264,1741477839785,-500.0,9.899e-05,2]
[355698265,1741477839794,-500.0,9.899e-05,2]
[355698266,1741477839803,-500.0,9.899e-05,2]
[355698267,1741477839812,-500.0,9.899e-05,2]
[355698268,1741477839821,-500.0,9.899e-05,2]
[355698269,1741477839831,-500.0,9.899e-05,2]
[355698270,1741477839840,-500.0,9.899e-05,2]
[355698271,1741477839850,-500.0,9.899e-05,2]
[355698272,1741477839859,-500.0,9.899e-05,2]
[355698273,1741477839868,-500.0,9.899e-05,2]
[355698274,1741477839879,-504.02879502,9.899e-05,2]
[355698275,1741477839889,-500.0,9.899e-05,2]
[355698276,1741477839898,-500.0,9.899e-05,2]
[355698277,1741477839907,-500.0,9.899e-05,2]
[355698278,1741477839917,-500.0,9.899e-05,2]
[355698279,1741477839926,-500.0,9.899e-05,2]
[355698280,1741477839936,-500.0,9.899e-05,2]
[355698281,1741477839945,-500.0,9.899e-05,2]
[355698282,1741477839955,-500.0,9.899e-05,2]
[355698283,1741477839964,-500.0,9.899e-05,2]
[355698284,1741477839973,-500.0,9.899e-05,2]
[355698285,1741477839982,-504.81486384,9.899e-05,2]
[355698286,1741477839991,-515.75977982,9.899e-05,2]
[355698287,1741477840001,-500.0,9.899e-05,2]
[355698288,1741477840010,-500.0,9.899e-05,2]
[355698289,1741477840019,-500.0,9.899e-05,2]
[355698290,1741477840029,-500.0,9.899e-05,2]
[355698291,1741477840038,-500.0,9.899e-05,2]
[355698292,1741477840049,-500.0,9.899e-05,2]
[355698293,1741477840062,-500.0,9.899e-05,2]
[355698294,1741477840071,-500.0,9.899e-05,2]
[355698295,1741477840083,-500.0,9.899e-05,2]
[355698296,1741477840093,-500.0,9.899e-05,2]
[355698297,1741477840103,-500.0,9.899e-05,2]
[355698298,1741477840112,-711.02,9.899e-05,2]
[355698299,1741477840124,-517.77763532,9.899e-05,2]
[355698300,1741477840133,-500.0,9.899e-05,2]
[355698301,1741477840143,-500.0,9.899e-05,2]
[355698302,1741477840152,-500.0,9.899e-05,2]
[355698303,1741477840162,-500.0,9.899e-05,2]
[355698304,1741477840171,-500.0,9.899e-05,2]
[355698305,1741477840180,-500.0,9.899e-05,2]
[355698306,1741477840190,-500.0,9.899e-05,2]
[355698307,1741477840199,-500.0,9.899e-05,2]
[355698308,1741477840209,-500.0,9.899e-05,2]
[355698309,1741477840219,-500.0,9.899e-05,2]
[355698310,1741477840228,-500.0,9.899e-05,2]
[355698311,1741477840238,-500.0,9.899e-05,2]
[355698312,1741477840247,-500.0,9.899e-05,2]
[355698313,1741477840256,-500.0,9.899e-05,2]
[355698314,1741477840266,-837.11,9.899e-05,2]
[355698315,1741477840276,-500.0,9.899e-05,2]
[355698316,1741477840286,-500.0,9.899e-05,2]
[355698317,1741477840295,-500.0,9.899e-05,2]
[355698318,1741477840304,-500.0,9.899e-05,2]
[355698319,1741477840313,-1440.74,9.899e-05,2]
[355698320,1741477840323,-500.0,9.899e-05,2]
[355698321,1741477840332,-500.0,9.899e-05,2]
[355698322,1741477840341,-500.0,9.899e-05,2]
[355698323,1741477840351,-500.0,9.899e-05,2]
[355698324,1741477840361,-500.0,9.899e-05,2]
[355698325,1741477840370,-500.0,9.899e-05,2]
[355698326,1741477840379,-1895.96,9.899e-05,2]
[355698327,1741477840388,-500.0,9.899e-05,2]
[355698328,1741477840398,-552.34325864,9.899e-05,2]
[355698329,1741477840408,-500.0,9.899e-05,2]
[355698330,1741477840416,-500.0,9.899e-05,2]
[355698331,1741477840425,-500.0,9.899e-05,2]
[355698332,1741477840434,-500.0,9.899e-05,2]
[355698333,1741477840443,-500.0,9.899e-05,2]
[355698334,1741477840453,-500.0,9.899e-05,2]
[355698335,1741477840462,-500.0,9.899e-05,2]
[355698336,1741477840471,-964.18,9.899e-05,2]
[355698337,1741477840480,-500.0,9.899e-05,2]
[355698338,1741477840489,-500.0,9.899e-05,2]
[355698339,1741477840499,-500.0,9.899e-05,2]
[355698340,1741477840508,-500.0,9.899e-05,2]
[355698341,1741477840517,-500.0,9.899e-05,2]
[355698342,1741477840527,-500.0,9.899e-05,2]
[355698343,1741477840536,-500.0,9.899e-05,2]
[355698344,1741477840545,-500.0,9.899e-05,2]
[355698345,1741477840554,-502.93160152,9.899e-05,2]
[355698346,1741477840564,-500.0,9.899e-05,2]
[355698347,1741477840573,-671.87,9.899e-05,2]
[355698348,1741477840582,-500.0,9.899e-05,2]
[355698349,1741477840592,-500.0,9.899e-05,2]
[355698350,1741477840601,-500.0,9.899e-05,2]
[355698351,1741477840611,-500.0,9.899e-05,2]
[355698352,1741477840620,-500.0,9.899e-05,2]
[355698353,1741477840629,-580.61,9.899e-05,2]
[355698354,1741477840638,-500.0,9.899e-05,2]
[355698355,1741477840647,-502.27978642,9.899e-05,2]
[355698356,1741477840656,-500.0,9.899e-05,2]
[355698357,1741477840666,-500.0,9.899e-05,2]
[355698358,1741477840675,-500.0,9.899e-05,2]
[355698359,1741477840684,-603.84,9.899e-05,2]
[355698360,1741477840694,-500.98823023,9.899e-05,2]
[355698361,1741477840703,-500.0,9.899e-05,2]
[355698362,1741477840712,-629.54,9.899e-05,2]
[355698363,1741477840721,-500.0,9.899e-05,2]
[355698364,1741477840730,-500.0,9.899e-05,2]
[355698365,1741477840739,-500.0,9.899e-05,2]
[355698366,1741477840748,-500.0,9.899e-05,2]
[355698367,1741477840758,-517.18,9.899e-05,2]
[355698368,1741477840767,-500.80030342,9.899e-05,2]
[355698369,1741477840776,-500.0,9.899e-05,2]
[355698370,1741477840785,-500.0,9.899e-05,2]
[355698371,1741477840794,-1507.31,9.899e-05,2]
[355698372,1741477840804,-500.0,9.899e-05,2]
[355698373,1741477840813,-500.0,9.899e-05,2]
[355698374,1741477840822,-500.0,9.899e-05,2]
[355698375,1741477840831,-500.0,9.899e-05,2]
[355698376,1741477840841,-500.0,9.899e-05,2]
[355698377,1741477840850,-500.0,9.899e-05,2]
[355698378,1741477840860,-500.0,9.899e-05,2]
[355698379,1741477840869,-500.0,9.899e-05,2]
[355698380,1741477840878,-500.0,9.899e-05,2]
[355698381,1741477840887,-512.44,9.899e-05,2]
[355698382,1741477840896,-500.0,9.899e-05,2]
[355698383,1741477840905,-500.0,9.899e-05,2]
[355698384,1741477840914,-500.0,9.899e-05,2]
[355698385,1741477840923,-1963.85,9.899e-05,2]
[355698386,1741477840932,-512.36,9.899e-05,2]
[355698387,1741477840941,-500.0,9.899e-05,2]
[355698388,1741477840951,-500.0,9.899e-05,2]
[355698389,1741477840960,-500.0,9.899e-05,2]
[355698390,1741477840969,-500.0,9.899e-05,2]
[355698391,1741477840978,-500.0,9.899e-05,2]
[355698392,1741477840987,-500.0,9.899e-05,2]
[355698393,1741477840996,-500.0,9.899e-05,2]
[355698394,1741477841006,-631.18,9.899e-05,2]
[355698395,1741477841016,-500.0,9.899e-05,2]
[355698396,1741477841025,-500.0,9.899e-05,2]
[355698397,1741477841034,-505.33636349,9.899e-05,2]
[355698398,1741477841043,-500.0,9.899e-05,2]
[355698399,1741477841055,-500.0,9.899e-05,2]
[355698400,1741477841064,-159.09325716,9.899e-05,2]
[355698401,1741477841073,-500.0,9.899e-05,2]
[355698402,1741477841082,-662.34,9.899e-05,2]
[355698403,1741477841091,-500.0,9.899e-05,2]
[355698404,1741477841103,-500.0,9.899e-05,2]
[355698405,1741477841112,-764.56,9.899e-05,2]
[355698406,1741477841121,-500.0,9.899e-05,2]
[355698407,1741477841131,-500.0,9.899e-05,2]
[355698408,1741477841141,-500.0,9.899e-05,2]
[355698409,1741477841150,-500.0,9.899e-05,2]
[355698410,1741477841160,-500.0,9.899e-05,2]
[355698411,1741477841169,-500.0,9.899e-05,2]
[355698412,1741477841178,-500.0,9.899e-05,2]
[355698413,1741477841188,-500.0,9.899e-05,2]
[355698414,1741477841198,-500.0,9.899e-05,2]
[355698415,1741477841207,-880.92,9.899e-05,2]
[355698416,1741477841217,-3145.53,9.899e-05,2]
[355698417,1741477841226,-500.0,9.899e-05,2]
[355698418,1741477841236,-500.0,9.899e-05,2]
[355698419,1741477841245,-500.0,9.899e-05,2]
[355698420,1741477841254,-502.28512777,9.899e-05,2]
[355698421,1741477841263,-500.0,9.899e-05,2]
[355698422,1741477841273,-500.0,9.899e-05,2]
[355698423,1741477841282,-500.0,9.899e-05,2]
[355698424,1741477841291,-500.0,9.899e-05,2]
[355698425,1741477841300,-500.0,9.899e-05,2]
[355698426,1741477841310,-500.91730851,9.899e-05,2]
[355698427,1741477841319,-812.79,9.899e-05,2]
[355698428,1741477841328,-500.0,9.899e-05,2]
[355698429,1741477841337,-501.04393291,9.899e-05,2]
[355698430,1741477841346,-500.0,9.899e-05,2]
[355698431,1741477841355,-511.17893622,9.899e-05,2]
[355698432,1741477841364,-505.90068591,9.899e-05,2]
[355698433,1741477841373,-500.0,9.899e-05,2]
[355698434,1741477841383,-500.0,9.899e-05,2]
[355698435,1741477841391,-500.0,9.899e-05,2]
[355698436,1741477841400,-500.0,9.899e-05,2]
[355698437,1741477841410,-500.0,9.899e-05,2]
[355698438,1741477841419,-502.65390924,9.899e-05,2]
[355698439,1741477841428,-500.0,9.899e-05,2]
[355698440,1741477841437,-500.0,9.899e-05,2]
[355698441,1741477841446,-500.0,9.899e-05,2]
[355698442,1741477841455,-500.0,9.899e-05,2]
[355698443,1741477841465,-500.0,9.899e-05,2]
[355698444,1741477841474,-500.0,9.899e-05,2]
[355698445,1741477841483,-500.0,9.899e-05,2]
[355698446,1741477841498,-501.20783394,9.899e-05,2]
[355698447,1741477841508,-500.0,9.899e-05,2]
[355698448,1741477841517,-500.0,9.899e-05,2]
[355698449,1741477841526,-500.0,9.899e-05,2]
[355698450,1741477841535,-1773.08,9.899e-05,2]
[355698451,1741477841544,-500.0,9.899e-05,2]
[355698452,1741477841766,-682.89,9.899e-05,2]
[355698453,1741477841775,-500.0,9.899e-05,2]
[355698454,1741477841784,-500.0,9.899e-05,2]
[355698455,1741477841794,-500.0,9.899e-05,2]
[355698456,1741477841803,-500.57950472,9.899e-05,2]
[355698457,1741477841813,-757.39,9.899e-05,2]
[355698458,1741477841822,-504.84255087,9.899e-05,2]
[355698459,1741477841831,-500.0,9.899e-05,2]
[355698460,1741477841840,-500.0,9.899e-05,2]
[355698461,1741477841849,-500.0,9.899e-05,2]
[355698462,1741477841858,-1743.24,9.899e-05,2]
[355698463,1741477841867,-634.38,9.899e-05,2]
[355698464,1741477841876,-2236.85,9.899e-05,2]
[355698465,1741477841884,-500.0,9.899e-05,2]
[355698466,1741477841893,-500.0,9.899e-05,2]
[355698467,1741477841902,-500.0,9.899e-05,2]
[355698468,1741477841912,-500.0,9.899e-05,2]
[355698469,1741477841922,-500.0,9.899e-05,2]
[355698470,1741477841931,-639.02,9.899e-05,2]
[355698471,1741477841940,-8148.03,9.899e-05,2]
[355698472,1741477841949,-335.93739304,9.899e-05,2]
[355698473,1741477841959,-515.15564453,9.899e-05,2]
[355698474,1741477841967,-500.0,9.899e-05,2]
[355698475,1741477841976,-500.0,9.899e-05,2]
[355698476,1741477841986,-917.03,9.899e-05,2]
[355698477,1741477841995,-500.0,9.899e-05,2]
[355698478,1741477842005,-888.83,9.899e-05,2]
[355698479,1741477842014,-500.0,9.899e-05,2]
[355698480,1741477842023,-500.0,9.899e-05,2]
[355698481,1741477842032,-636.12735967,9.899e-05,2]
[355698482,1741477842042,-500.0,9.899e-05,2]
[355698483,1741477842053,-500.0,9.899e-05,2]
[355698484,1741477842063,-614.39,9.899e-05,2]
[355698485,1741477842073,-500.0,9.899e-05,2]
[355698486,1741477842083,-500.0,9.899e-05,2]
[355698487,1741477842092,-923.12,9.899e-05,2]
[355698488,1741477842103,-500.0,9.899e-05,2]
[355698489,1741477842113,-615.8,9.899e-05,2]
[355698490,1741477842122,-548.6,9.899e-05,2]
[355698491,1741477842133,-993.99,9.899e-05,2]
[355698492,1741477842143,-500.0,9.899e-05,2]
[355698493,1741477842152,-500.0,9.899e-05,2]
[355698494,1741477842161,-500.0,9.899e-05,2]
[355698495,1741477842171,-500.0,9.899e-05,2]
[355698496,1741477842180,-500.0,9.899e-05,2]
[355698497,1741477842189,-500.0,9.899e-05,2]
[355698498,1741477842199,-500.0,9.899e-05,2]
[355698499,1741477842208,-813.3,9.899e-05,2]
[355698500,1741477842217,-500.0,9.899e-05,2]
[355698501,1741477842227,-500.0,9.899e-05,2]
[355698502,1741477842236,-564.76451095,9.899e-05,2]
[355698503,1741477842245,-563.98,9.899e-05,2]
[355698504,1741477842254,-500.0,9.899e-05,2]
[355698505,1741477842263,-500.0,9.899e-05,2]
[355698506,1741477842272,-694.46,9.899e-05,2]
[355698507,1741477842281,-695.48,9.899e-05,2]
[355698508,1741477842291,-500.0,9.899e-05,2]
[355698509,1741477842300,-500.0,9.899e-05,2]
[355698511,1741477842310,-500.0,9.899e-05,2]
[355698512,1741477842319,-1468.75,9.899e-05,2]
[355698513,1741477842328,-500.0,9.899e-05,2]
[355698514,1741477842338,-500.0,9.899e-05,2]
[355698515,1741477842347,-500.0,9.899e-05,2]
[355698516,1741477842356,-1006.55,9.899e-05,2]
[355698517,1741477842366,-500.0,9.899e-05,2]
[355698519,1741477842375,-500.0,9.899e-05,2]
[355698520,1741477842385,-2091.92,9.899e-05,2]
[355698521,1741477842394,-500.0,9.899e-05,2]
[355698522,1741477842403,-500.0,9.899e-05,2]
[355698523,1741477842412,-500.0,9.899e-05,2]
[355698524,1741477842422,-500.0,9.899e-05,2]
[355698525,1741477842431,-500.0,9.899e-05,2]
[355698526,1741477842440,-500.0,9.899e-05,2]
[355698527,1741477842450,-500.0,9.899e-05,2]
[355698528,1741477842459,-500.0,9.899e-05,2]
[355698529,1741477842468,-517.45035348,9.899e-05,2]
[355698530,1741477842478,-6154.83,9.899e-05,2]
[355698531,1741477842488,-500.0,9.899e-05,2]
[355698532,1741477842497,-500.0,9.899e-05,2]
[355698533,1741477842507,-500.0,9.899e-05,2]
[355698534,1741477842516,-949.91,9.899e-05,2]
[355698535,1741477842525,-508.4929352,9.899e-05,2]
[355698536,1741477842535,-500.0,9.899e-05,2]
[355698537,1741477842544,-3465.6,9.899e-05,2]
[355698538,1741477842553,-500.0,9.899e-05,2]
[355698539,1741477842563,-500.0,9.899e-05,2]
[355698540,1741477842572,-500.0,9.899e-05,2]
[355698541,1741477842581,-500.0,9.899e-05,2]
[355698542,1741477842591,-500.0,9.899e-05,2]
[355698543,1741477842600,-500.0,9.899e-05,2]
[355698544,1741477842609,-500.0,9.899e-05,2]
[355698545,1741477842619,-500.0,9.899e-05,2]
[355698546,1741477842629,-656.57,9.899e-05,2]
[355698547,1741477842638,-500.0,9.899e-05,2]
[355698548,1741477842648,-500.0,9.899e-05,2]
[355698549,1741477842658,-500.0,9.899e-05,2]
[355698550,1741477842668,-500.0,9.899e-05,2]
[355698551,1741477842678,-500.86257176,9.899e-05,2]
[355698552,1741477842688,-500.0,9.899e-05,2]
[355698553,1741477842698,-500.0,9.899e-05,2]
[355698554,1741477842707,-500.0,9.899e-05,2]
[355698555,1741477842717,-500.96738081,9.899e-05,2]
[355698556,1741477842727,-500.0,9.899e-05,2]
[355698557,1741477842737,-500.0,9.899e-05,2]
[355698558,1741477842746,-586.34272196,9.899e-05,2]
[355698559,1741477842755,-1747.93,9.899e-05,2]
[355698560,1741477842766,-500.0,9.899e-05,2]
[355698561,1741477842775,-576.58,9.899e-05,2]
[355698562,1741477842785,-500.0,9.899e-05,2]
[355698563,1741477842794,-500.0,9.899e-05,2]
[355698564,1741477842803,-500.0,9.899e-05,2]
[355698565,1741477842813,-505.87274096,9.899e-05,2]
[355698566,1741477842822,-505.19347165,9.899e-05,2]
[355698567,1741477842831,-500.0,9.899e-05,2]
[355698568,1741477842841,-500.0,9.899e-05,2]
[355698569,1741477842850,-532.17,9.899e-05,2]
[355698570,1741477842860,-566.37288533,9.899e-05,2]
[355698571,1741477842869,-500.0,9.899e-05,2]
[355698572,1741477842878,-500.0,9.899e-05,2]
[355698573,1741477842888,-500.0,9.899e-05,2]
[355698574,1741477842897,-500.0,9.899e-05,2]
[355698575,1741477842907,-500.0,9.899e-05,2]
[355698576,1741477842916,-808.41,9.899e-05,2]
[355698577,1741477842925,-500.0,9.899e-05,2]
[355698578,1741477842935,-500.0,9.899e-05,2]
[355698579,1741477842944,-500.0,9.899e-05,2]
[355698580,1741477842954,-500.0,9.899e-05,2]